[Event "Titled Tuesday Blitz July 18 Late 2023"]
[White "Olsen, Filip Boe"]
[Black "Luong Phuong Hanh"]
[WhiteFideId "1440640"]
[BlackFideId "12401013"]
[WhiteElo "2631"]
[BlackElo "2399"]
[Result "1-0"]
[Round "4"]
[TimeControl "180+2"]
[Date "2023.07.18"]
[WhiteClock "0:00:57"]
[BlackClock "0:00:19"]
[Board "110"]

1. c4 {[%clk 0:02:57]}  Nf6 {[%clk 0:02:58]} 2. g3 {[%clk 0:02:56]}  c6 {[%clk 0:02:58]} 3. Bg2 {[%clk 0:02:56]}  d5 {[%clk 0:02:58]} 4. Nf3 {[%clk 0:02:56]}  g6 {[%clk 0:02:58]} 5. O-O {[%clk 0:02:56]}  Bg7 {[%clk 0:02:58]} 6. d4 {[%clk 0:02:55]}  O-O {[%clk 0:02:58]} 7. b3 {[%clk 0:02:52]}  Bf5 {[%clk 0:02:55]} 8. Bf4 {[%clk 0:02:51]}  Nbd7 {[%clk 0:02:49]} 9. Qc1 {[%clk 0:02:45]}  Re8 {[%clk 0:02:43]} 10. Nc3 {[%clk 0:02:40]}  Ne4 {[%clk 0:02:35]} 11. Rd1 {[%clk 0:02:28]}  Nxc3 {[%clk 0:02:34]} 12. Qxc3 {[%clk 0:02:29]}  Be4 {[%clk 0:02:34]} 13. Ne5 {[%clk 0:02:26]}  Bxg2 {[%clk 0:02:33]} 14. Kxg2 {[%clk 0:02:27]}  Nf6 {[%clk 0:02:27]} 15. Rac1 {[%clk 0:02:23]}  Rc8 {[%clk 0:02:26]} 16. Qb4 {[%clk 0:02:21]}  Qb6 {[%clk 0:02:02]} 17. Qxb6 {[%clk 0:02:08]}  axb6 {[%clk 0:02:03]} 18. a4 {[%clk 0:02:06]}  Red8 {[%clk 0:01:54]} 19. Bg5 {[%clk 0:02:02]}  h6 {[%clk 0:01:53]} 20. Bxf6 {[%clk 0:01:54]}  Bxf6 {[%clk 0:01:53]} 21. cxd5 {[%clk 0:01:54]}  Rxd5 {[%clk 0:01:52]} 22. Nc4 {[%clk 0:01:49]}  Bxd4 {[%clk 0:01:43]} 23. Nxb6 {[%clk 0:01:48]}  Bxb6 {[%clk 0:01:31]} 24. Rxd5 {[%clk 0:01:48]}  Rc7 {[%clk 0:01:27]} 25. Rd8+ {[%clk 0:01:44]}  Kg7 {[%clk 0:01:27]} 26. Rcd1 {[%clk 0:01:42]}  c5 {[%clk 0:01:24]} 27. Re8 {[%clk 0:01:39]}  Kf6 {[%clk 0:01:19]} 28. Rc1 {[%clk 0:01:35]}  Ba5 {[%clk 0:01:18]} 29. Rc4 {[%clk 0:01:34]}  b6 {[%clk 0:01:15]} 30. Rf8 {[%clk 0:01:31]}  Kg7 {[%clk 0:01:14]} 31. Re8 {[%clk 0:01:30]}  Rd7 {[%clk 0:01:12]} 32. Re4 {[%clk 0:01:28]}  e6 {[%clk 0:01:09]} 33. Re3 {[%clk 0:01:23]}  Rc7 {[%clk 0:00:57]} 34. Rd3 {[%clk 0:01:21]}  c4 {[%clk 0:00:42]} 35. bxc4 {[%clk 0:01:22]}  Rxc4 {[%clk 0:00:42]} 36. Re7 {[%clk 0:01:22]}  Bb4 {[%clk 0:00:39]} 37. Rb7 {[%clk 0:01:20]}  Bc5 {[%clk 0:00:35]} 38. Rf3 {[%clk 0:01:19]}  g5 {[%clk 0:00:33]} 39. Rfxf7+ {[%clk 0:01:17]}  Kg6 {[%clk 0:00:34]} 40. h3 {[%clk 0:01:10]}  Rxa4 {[%clk 0:00:29]} 41. g4 {[%clk 0:01:09]}  Bd4 {[%clk 0:00:29]} 42. Rfe7 {[%clk 0:01:07]}  Kf6 {[%clk 0:00:28]} 43. e3 {[%clk 0:01:06]}  Be5 {[%clk 0:00:28]} 44. Rf7+ {[%clk 0:01:03]}  Kg6 {[%clk 0:00:27]} 45. Rfe7 {[%clk 0:01:00]}  Kf6 {[%clk 0:00:27]} 46. Re8 {[%clk 0:01:00]}  Rb4 {[%clk 0:00:23]} 47. Rbe7 {[%clk 0:00:59]}  Bc3 {[%clk 0:00:19]} 48. Rxe6+ {[%clk 0:00:59]}  Kf7 {[%clk 0:00:20]} 49. R8e7+ {[%clk 0:00:58]}  Kf8 {[%clk 0:00:20]} 50. Rb7 {[%clk 0:00:58]}  Rb2 {[%clk 0:00:19]} 51. Rc6 {[%clk 0:00:57]}  Be1 {[%clk 0:00:19]} 52. Rc8# {[%clk 0:00:57]} 1-0


[Site "https://www.chess.com"]

[Event "Titled Tuesday Blitz July 18 Late 2023"]
[White "Ovchinnikov, Vsevolod"]
[Black "Jonkman, Harmen"]
[WhiteFideId "24176842"]
[BlackFideId "1002708"]
[WhiteElo "2622"]
[BlackElo "2396"]
[Result "1-0"]
[Round "4"]
[TimeControl "180+2"]
[Date "2023.07.18"]
[WhiteClock "0:00:16"]
[BlackClock "0:00:00"]
[Board "111"]

1. d4 {[%clk 0:03:00]}  d5 {[%clk 0:02:59]} 2. c4 {[%clk 0:03:01]}  dxc4 {[%clk 0:03:00]} 3. Nf3 {[%clk 0:03:01]}  e6 {[%clk 0:02:57]} 4. e3 {[%clk 0:03:02]}  a6 {[%clk 0:02:57]} 5. a4 {[%clk 0:03:01]}  c5 {[%clk 0:02:57]} 6. Bxc4 {[%clk 0:03:01]}  Nf6 {[%clk 0:02:57]} 7. O-O {[%clk 0:03:01]}  Nc6 {[%clk 0:02:57]} 8. Qe2 {[%clk 0:03:02]}  Qc7 {[%clk 0:02:57]} 9. Nc3 {[%clk 0:02:59]}  Bd6 {[%clk 0:02:57]} 10. Rd1 {[%clk 0:02:01]}  O-O {[%clk 0:02:56]} 11. h3 {[%clk 0:01:58]}  e5 {[%clk 0:02:44]} 12. dxc5 {[%clk 0:01:07]}  Bxc5 {[%clk 0:02:44]} 13. b3 {[%clk 0:01:08]}  e4 {[%clk 0:02:28]} 14. Nd2 {[%clk 0:01:08]}  Qe5 {[%clk 0:02:24]} 15. Bb2 {[%clk 0:01:08]}  Re8 {[%clk 0:01:41]} 16. Ncxe4 {[%clk 0:00:59]}  Qxb2 {[%clk 0:01:34]} 17. Nxc5 {[%clk 0:01:00]}  Qe5 {[%clk 0:00:47]} 18. Nd3 {[%clk 0:00:59]}  Qg5 {[%clk 0:00:41]} 19. Nf3 {[%clk 0:00:59]}  Qf5 {[%clk 0:00:37]} 20. Nf4 {[%clk 0:00:49]}  Nb4 {[%clk 0:00:20]} 21. Qd2 {[%clk 0:00:35]}  a5 {[%clk 0:00:16]} 22. Rac1 {[%clk 0:00:25]}  g5 {[%clk 0:00:13]} 23. Nd4 {[%clk 0:00:20]}  Qe4 {[%clk 0:00:05]} 24. Nd3 {[%clk 0:00:19]}  Nbd5 {[%clk 0:00:02]} 25. Nc5 {[%clk 0:00:19]}  Qe7 {[%clk 0:00:00]} 26. Bxd5 {[%clk 0:00:16]} 1-0


[Site "https://www.chess.com"]

[Event "Titled Tuesday Blitz July 18 Late 2023"]
[White "Lewtak, Damian"]
[Black "Ortega Ruiz, Jose Miguel"]
[WhiteFideId "1141724"]
[BlackFideId "2209713"]
[WhiteElo "2612"]
[BlackElo "2390"]
[Result "1-0"]
[Round "4"]
[TimeControl "180+2"]
[Date "2023.07.18"]
[WhiteClock "0:01:17"]
[BlackClock "0:00:03"]
[Board "112"]

1. e4 {[%clk 0:03:00]}  c5 {[%clk 0:02:59]} 2. Nf3 {[%clk 0:03:00]}  Nc6 {[%clk 0:02:59]} 3. Bb5 {[%clk 0:03:00]}  e5 {[%clk 0:02:58]} 4. O-O {[%clk 0:03:00]}  Bd6 {[%clk 0:02:56]} 5. c3 {[%clk 0:03:01]}  Nge7 {[%clk 0:02:54]} 6. d4 {[%clk 0:03:01]}  cxd4 {[%clk 0:02:46]} 7. cxd4 {[%clk 0:03:02]}  Nxd4 {[%clk 0:02:43]} 8. Nxd4 {[%clk 0:03:03]}  exd4 {[%clk 0:02:42]} 9. Qxd4 {[%clk 0:03:00]}  Qc7 {[%clk 0:02:27]} 10. h3 {[%clk 0:02:51]}  O-O {[%clk 0:02:20]} 11. Nc3 {[%clk 0:02:43]}  a6 {[%clk 0:02:05]} 12. Ba4 {[%clk 0:02:35]}  b5 {[%clk 0:02:04]} 13. Bb3 {[%clk 0:02:35]}  Bc5 {[%clk 0:01:23]} 14. Bf4 {[%clk 0:02:23]}  Bxd4 {[%clk 0:01:15]} 15. Bxc7 {[%clk 0:02:23]}  Bb7 {[%clk 0:01:09]} 16. Rfe1 {[%clk 0:02:22]}  b4 {[%clk 0:00:59]} 17. Na4 {[%clk 0:02:18]}  Bc6 {[%clk 0:00:52]} 18. Rad1 {[%clk 0:02:06]}  Bxa4 {[%clk 0:00:44]} 19. Bxa4 {[%clk 0:02:05]}  Bxb2 {[%clk 0:00:42]} 20. Bd6 {[%clk 0:01:55]}  Bc3 {[%clk 0:00:35]} 21. Re3 {[%clk 0:01:46]}  Ng6 {[%clk 0:00:12]} 22. Bxf8 {[%clk 0:01:42]}  Kxf8 {[%clk 0:00:09]} 23. Rxd7 {[%clk 0:01:33]}  Ne5 {[%clk 0:00:07]} 24. Rc7 {[%clk 0:01:27]}  Rd8 {[%clk 0:00:07]} 25. Kh2 {[%clk 0:01:24]}  Rd2 {[%clk 0:00:06]} 26. f4 {[%clk 0:01:16]}  Ng6 {[%clk 0:00:04]} 27. e5 {[%clk 0:01:16]}  Nxf4 {[%clk 0:00:03]} 28. Rc8+ {[%clk 0:01:16]}  Ke7 {[%clk 0:00:03]} 29. Re8# {[%clk 0:01:17]} 1-0


[Site "https://www.chess.com"]

[Event "Titled Tuesday Blitz July 18 Late 2023"]
[White "Rietze, Clemens, Dr."]
[Black "Golubev, Mikhail"]
[WhiteFideId "24620351"]
[BlackFideId "14100983"]
[WhiteElo "2384"]
[BlackElo "2575"]
[Result "1-0"]
[Round "4"]
[TimeControl "180+2"]
[Date "2023.07.18"]
[WhiteClock "0:00:23"]
[BlackClock "0:00:00"]
[Board "113"]

1. d4 {[%clk 0:03:00]}  Nf6 {[%clk 0:02:59]} 2. c4 {[%clk 0:03:00]}  g6 {[%clk 0:02:58]} 3. f3 {[%clk 0:03:00]}  Bg7 {[%clk 0:02:57]} 4. e4 {[%clk 0:03:00]}  d6 {[%clk 0:02:58]} 5. Nc3 {[%clk 0:03:01]}  O-O {[%clk 0:02:56]} 6. Be3 {[%clk 0:03:01]}  a6 {[%clk 0:02:56]} 7. Bd3 {[%clk 0:03:00]}  c5 {[%clk 0:02:46]} 8. Nge2 {[%clk 0:02:56]}  Nc6 {[%clk 0:02:34]} 9. Bc2 {[%clk 0:02:56]}  cxd4 {[%clk 0:02:23]} 10. Nxd4 {[%clk 0:02:55]}  Bd7 {[%clk 0:02:20]} 11. O-O {[%clk 0:02:50]}  Rc8 {[%clk 0:02:15]} 12. Nde2 {[%clk 0:02:34]}  Ne5 {[%clk 0:02:05]} 13. b3 {[%clk 0:02:34]}  b5 {[%clk 0:02:05]} 14. cxb5 {[%clk 0:02:30]}  axb5 {[%clk 0:02:04]} 15. Qd2 {[%clk 0:02:21]}  b4 {[%clk 0:02:01]} 16. Nd5 {[%clk 0:02:11]}  Nxd5 {[%clk 0:01:47]} 17. exd5 {[%clk 0:02:11]}  Bb5 {[%clk 0:01:42]} 18. Rfd1 {[%clk 0:01:58]}  Bxe2 {[%clk 0:01:16]} 19. Qxe2 {[%clk 0:01:57]}  Nd7 {[%clk 0:01:16]} 20. Rab1 {[%clk 0:01:51]}  Qa5 {[%clk 0:01:14]} 21. Bd3 {[%clk 0:01:48]}  Ra8 {[%clk 0:00:54]} 22. Rd2 {[%clk 0:01:45]}  Bc3 {[%clk 0:00:35]} 23. Rc2 {[%clk 0:01:45]}  Nf6 {[%clk 0:00:25]} 24. Bf2 {[%clk 0:01:22]}  Nxd5 {[%clk 0:00:23]} 25. Be4 {[%clk 0:01:22]}  Rac8 {[%clk 0:00:20]} 26. Rd1 {[%clk 0:01:17]}  Nf6 {[%clk 0:00:18]} 27. Bd3 {[%clk 0:01:13]}  Rc7 {[%clk 0:00:18]} 28. h4 {[%clk 0:01:09]}  e6 {[%clk 0:00:11]} 29. Bg3 {[%clk 0:01:06]}  Nd5 {[%clk 0:00:11]} 30. Be4 {[%clk 0:01:03]}  Rfc8 {[%clk 0:00:05]} 31. Kh1 {[%clk 0:01:02]}  Be5 {[%clk 0:00:04]} 32. Rxc7 {[%clk 0:00:59]}  Rxc7 {[%clk 0:00:03]} 33. Bxe5 {[%clk 0:00:56]}  dxe5 {[%clk 0:00:04]} 34. Bxd5 {[%clk 0:00:56]}  exd5 {[%clk 0:00:04]} 35. Qxe5 {[%clk 0:00:56]}  Rc2 {[%clk 0:00:03]} 36. h5 {[%clk 0:00:46]}  Qa8 {[%clk 0:00:02]} 37. h6 {[%clk 0:00:44]}  Qf8 {[%clk 0:00:01]} 38. Qf4 {[%clk 0:00:39]}  Rxa2 {[%clk 0:00:01]} 39. Rxd5 {[%clk 0:00:39]}  Ra1+ {[%clk 0:00:01]} 40. Kh2 {[%clk 0:00:39]}  Ra8 {[%clk 0:00:02]} 41. g4 {[%clk 0:00:33]}  f6 {[%clk 0:00:01]} 42. Rd7 {[%clk 0:00:30]}  g5 {[%clk 0:00:02]} 43. Qc4+ {[%clk 0:00:27]}  Kh8 {[%clk 0:00:02]} 44. Rg7 {[%clk 0:00:26]}  Rc8 {[%clk 0:00:00]} 45. Qd3 {[%clk 0:00:23]} 1-0


[Site "https://www.chess.com"]

[Event "Titled Tuesday Blitz July 18 Late 2023"]
[White "Vovk, Orest"]
[Black "Todorovic, Bojan"]
[WhiteFideId "14113490"]
[BlackFideId "917087"]
[WhiteElo "2562"]
[BlackElo "2372"]
[Result "1/2-1/2"]
[Round "4"]
[TimeControl "180+2"]
[Date "2023.07.18"]
[WhiteClock "0:01:11"]
[BlackClock "0:00:52"]
[Board "115"]

1. g4 {[%clk 0:02:56]}  d5 {[%clk 0:02:56]} 2. h3 {[%clk 0:02:54]}  c6 {[%clk 0:02:55]} 3. Bg2 {[%clk 0:02:55]}  e5 {[%clk 0:02:55]} 4. d4 {[%clk 0:02:55]}  e4 {[%clk 0:02:53]} 5. c4 {[%clk 0:02:56]}  Bd6 {[%clk 0:02:46]} 6. Nc3 {[%clk 0:02:56]}  Ne7 {[%clk 0:02:46]} 7. Qb3 {[%clk 0:02:57]}  O-O {[%clk 0:02:43]} 8. Bg5 {[%clk 0:02:57]}  f6 {[%clk 0:02:38]} 9. Bd2 {[%clk 0:02:57]}  Bc7 {[%clk 0:02:32]} 10. cxd5 {[%clk 0:02:57]}  Kh8 {[%clk 0:02:12]} 11. Bxe4 {[%clk 0:02:47]}  cxd5 {[%clk 0:02:07]} 12. Bb1 {[%clk 0:02:46]}  Nbc6 {[%clk 0:02:04]} 13. Nf3 {[%clk 0:02:45]}  Rb8 {[%clk 0:01:54]} 14. Qc2 {[%clk 0:02:41]}  g6 {[%clk 0:01:48]} 15. a3 {[%clk 0:02:38]}  Be6 {[%clk 0:01:47]} 16. Bh6 {[%clk 0:02:35]}  Re8 {[%clk 0:01:41]} 17. g5 {[%clk 0:02:32]}  Bf5 {[%clk 0:01:34]} 18. Qd2 {[%clk 0:02:32]}  Bxb1 {[%clk 0:01:33]} 19. Rxb1 {[%clk 0:02:33]}  Nf5 {[%clk 0:01:33]} 20. gxf6 {[%clk 0:02:31]}  Nxh6 {[%clk 0:01:22]} 21. Qxh6 {[%clk 0:02:30]}  Qxf6 {[%clk 0:01:22]} 22. Ng5 {[%clk 0:02:15]}  Qe7 {[%clk 0:01:07]} 23. e3 {[%clk 0:01:48]}  Bf4 {[%clk 0:01:06]} 24. h4 {[%clk 0:01:42]}  Bxe3 {[%clk 0:01:05]} 25. Kf1 {[%clk 0:01:34]}  Bxd4 {[%clk 0:00:59]} 26. h5 {[%clk 0:01:20]}  Bxc3 {[%clk 0:00:59]} 27. hxg6 {[%clk 0:01:16]}  Qe2+ {[%clk 0:00:58]} 28. Kg1 {[%clk 0:01:16]}  Qg4+ {[%clk 0:00:58]} 29. Kf1 {[%clk 0:01:12]}  Qe2+ {[%clk 0:00:53]} 30. Kg1 {[%clk 0:01:12]}  Qg4+ {[%clk 0:00:53]} 31. Kf1 {[%clk 0:01:11]}  Qe2+ {[%clk 0:00:52]} 1/2-1/2


[Site "https://www.chess.com"]

[Event "Titled Tuesday Blitz July 18 Late 2023"]
[White "Przybylski, Wojciech"]
[Black "Merino Garcia, Rafael II"]
[WhiteFideId "1117599"]
[BlackFideId "2209128"]
[WhiteElo "2544"]
[BlackElo "2369"]
[Result "1-0"]
[Round "4"]
[TimeControl "180+2"]
[Date "2023.07.18"]
[WhiteClock "0:02:12"]
[BlackClock "0:01:39"]
[Board "116"]

1. d4 {[%clk 0:03:00]}  d6 {[%clk 0:03:00]} 2. e4 {[%clk 0:02:59]}  Nd7 {[%clk 0:02:59]} 3. Nf3 {[%clk 0:02:59]}  g6 {[%clk 0:02:59]} 4. h4 {[%clk 0:02:59]}  h6 {[%clk 0:02:59]} 5. Bc4 {[%clk 0:02:57]}  e6 {[%clk 0:02:58]} 6. Nc3 {[%clk 0:02:52]}  Bg7 {[%clk 0:02:57]} 7. a3 {[%clk 0:02:52]}  Ne7 {[%clk 0:02:57]} 8. a4 {[%clk 0:02:51]}  a6 {[%clk 0:02:55]} 9. a5 {[%clk 0:02:51]}  b5 {[%clk 0:02:54]} 10. axb6 {[%clk 0:02:47]}  cxb6 {[%clk 0:02:54]} 11. Bd3 {[%clk 0:02:45]}  Bb7 {[%clk 0:02:53]} 12. Qe2 {[%clk 0:02:43]}  b5 {[%clk 0:02:52]} 13. Bf4 {[%clk 0:02:40]}  Nf6 {[%clk 0:02:45]} 14. e5 {[%clk 0:02:32]}  dxe5 {[%clk 0:02:43]} 15. dxe5 {[%clk 0:02:31]}  Nfd5 {[%clk 0:02:43]} 16. Nxd5 {[%clk 0:02:30]}  Nxd5 {[%clk 0:02:40]} 17. Bd2 {[%clk 0:02:29]}  O-O {[%clk 0:02:39]} 18. h5 {[%clk 0:02:25]}  g5 {[%clk 0:02:38]} 19. Qe4 {[%clk 0:02:20]}  Re8 {[%clk 0:02:07]} 20. Qh7+ {[%clk 0:02:17]}  Kf8 {[%clk 0:02:07]} 21. Bxg5 {[%clk 0:02:16]}  hxg5 {[%clk 0:02:02]} 22. h6 {[%clk 0:02:16]}  Bxe5 {[%clk 0:01:58]} 23. Nxe5 {[%clk 0:02:13]}  Qf6 {[%clk 0:01:39]} 24. Nd7+ {[%clk 0:02:12]} 1-0


[Site "https://www.chess.com"]

[Event "Titled Tuesday Blitz July 18 Late 2023"]
[White "Romero Ruscalleda, Josep"]
[Black "Arencibia Monduy, Antonio"]
[WhiteFideId "2231859"]
[BlackFideId "3507939"]
[WhiteElo "2366"]
[BlackElo "2539"]
[Result "1-0"]
[Round "4"]
[TimeControl "180+2"]
[Date "2023.07.18"]
[WhiteClock "0:00:02"]
[BlackClock "0:00:00"]
[Board "117"]

1. e4 {[%clk 0:03:00]}  c5 {[%clk 0:03:00]} 2. c3 {[%clk 0:03:00]}  e6 {[%clk 0:03:00]} 3. d4 {[%clk 0:03:00]}  cxd4 {[%clk 0:02:58]} 4. cxd4 {[%clk 0:02:59]}  d5 {[%clk 0:02:59]} 5. e5 {[%clk 0:02:59]}  Nc6 {[%clk 0:02:59]} 6. Be3 {[%clk 0:02:59]}  Nge7 {[%clk 0:03:00]} 7. Nf3 {[%clk 0:02:58]}  Nf5 {[%clk 0:03:00]} 8. Nc3 {[%clk 0:02:58]}  Be7 {[%clk 0:03:00]} 9. Bd3 {[%clk 0:02:57]}  O-O {[%clk 0:03:00]} 10. O-O {[%clk 0:02:56]}  a6 {[%clk 0:03:00]} 11. Rc1 {[%clk 0:02:51]}  Na5 {[%clk 0:02:49]} 12. Nd2 {[%clk 0:02:33]}  b5 {[%clk 0:02:42]} 13. Qf3 {[%clk 0:02:27]}  Nh4 {[%clk 0:01:44]} 14. Qg3 {[%clk 0:02:13]}  f5 {[%clk 0:01:26]} 15. exf6 {[%clk 0:02:09]}  Bxf6 {[%clk 0:01:26]} 16. Ne2 {[%clk 0:01:57]}  Nc4 {[%clk 0:01:24]} 17. Nxc4 {[%clk 0:01:45]}  bxc4 {[%clk 0:01:21]} 18. Bb1 {[%clk 0:01:45]}  Bd7 {[%clk 0:01:18]} 19. Nf4 {[%clk 0:01:38]}  Qe8 {[%clk 0:00:52]} 20. Rfe1 {[%clk 0:01:32]}  Qf7 {[%clk 0:00:51]} 21. b3 {[%clk 0:01:26]}  Rac8 {[%clk 0:00:48]} 22. bxc4 {[%clk 0:01:23]}  dxc4 {[%clk 0:00:47]} 23. Rc3 {[%clk 0:01:06]}  Nf5 {[%clk 0:00:46]} 24. Bxf5 {[%clk 0:01:02]}  exf5 {[%clk 0:00:47]} 25. Rec1 {[%clk 0:00:57]}  Kh8 {[%clk 0:00:41]} 26. Ne2 {[%clk 0:00:43]}  Rg8 {[%clk 0:00:31]} 27. Qd6 {[%clk 0:00:38]}  Bb5 {[%clk 0:00:20]} 28. Nf4 {[%clk 0:00:31]}  Rgd8 {[%clk 0:00:19]} 29. Qe6 {[%clk 0:00:31]}  Qxe6 {[%clk 0:00:17]} 30. Nxe6 {[%clk 0:00:31]}  Re8 {[%clk 0:00:17]} 31. Nc5 {[%clk 0:00:25]}  f4 {[%clk 0:00:14]} 32. a4 {[%clk 0:00:19]}  fxe3 {[%clk 0:00:12]} 33. fxe3 {[%clk 0:00:17]}  Rxc5 {[%clk 0:00:08]} 34. axb5 {[%clk 0:00:08]}  Rxb5 {[%clk 0:00:06]} 35. Rxc4 {[%clk 0:00:07]}  h6 {[%clk 0:00:06]} 36. R1c3 {[%clk 0:00:06]}  Rb1+ {[%clk 0:00:03]} 37. Kf2 {[%clk 0:00:06]}  Ra1 {[%clk 0:00:03]} 38. Kf3 {[%clk 0:00:05]}  Kh7 {[%clk 0:00:03]} 39. g3 {[%clk 0:00:03]}  Rf1+ {[%clk 0:00:03]} 40. Kg4 {[%clk 0:00:03]}  Kg6 {[%clk 0:00:02]} 41. Rc6 {[%clk 0:00:03]}  h5+ {[%clk 0:00:02]} 42. Kh3 {[%clk 0:00:03]}  a5 {[%clk 0:00:00]} 43. Ra6 {[%clk 0:00:02]} 1-0


[Site "https://www.chess.com"]

[Event "Titled Tuesday Blitz July 18 Late 2023"]
[White "Rodriguez Santiago, Jaime"]
[Black "Shubenkova, Veronika"]
[WhiteFideId "3100898"]
[BlackFideId "44124040"]
[WhiteElo "2360"]
[BlackElo "2520"]
[Result "0-1"]
[Round "4"]
[TimeControl "180+2"]
[Date "2023.07.18"]
[WhiteClock "0:00:14"]
[BlackClock "0:01:07"]
[Board "119"]

1. c4 {[%clk 0:03:00]}  e5 {[%clk 0:02:58]} 2. Nc3 {[%clk 0:02:59]}  g6 {[%clk 0:02:57]} 3. g3 {[%clk 0:02:58]}  Bg7 {[%clk 0:02:57]} 4. Bg2 {[%clk 0:02:59]}  f5 {[%clk 0:02:56]} 5. d3 {[%clk 0:02:57]}  d6 {[%clk 0:02:56]} 6. e4 {[%clk 0:02:57]}  Nf6 {[%clk 0:02:56]} 7. Nge2 {[%clk 0:02:57]}  O-O {[%clk 0:02:56]} 8. O-O {[%clk 0:02:57]}  c6 {[%clk 0:02:57]} 9. f4 {[%clk 0:02:52]}  Na6 {[%clk 0:02:55]} 10. Rb1 {[%clk 0:02:51]}  Nc5 {[%clk 0:02:54]} 11. b4 {[%clk 0:02:40]}  Ne6 {[%clk 0:02:54]} 12. h3 {[%clk 0:02:40]}  a5 {[%clk 0:02:53]} 13. a3 {[%clk 0:02:40]}  axb4 {[%clk 0:02:52]} 14. axb4 {[%clk 0:02:40]}  Bd7 {[%clk 0:02:52]} 15. Be3 {[%clk 0:02:38]}  Ra3 {[%clk 0:02:49]} 16. Qc1 {[%clk 0:02:29]}  Ra8 {[%clk 0:02:44]} 17. fxe5 {[%clk 0:02:26]}  dxe5 {[%clk 0:02:43]} 18. exf5 {[%clk 0:02:19]}  gxf5 {[%clk 0:02:40]} 19. Bh6 {[%clk 0:01:45]}  Bxh6 {[%clk 0:02:34]} 20. Qxh6 {[%clk 0:01:43]}  Ng7 {[%clk 0:02:34]} 21. d4 {[%clk 0:01:39]}  exd4 {[%clk 0:02:26]} 22. Nxd4 {[%clk 0:01:37]}  Bc8 {[%clk 0:02:24]} 23. Nce2 {[%clk 0:01:14]}  Ra2 {[%clk 0:02:22]} 24. c5 {[%clk 0:01:03]}  Nd5 {[%clk 0:02:06]} 25. Rf2 {[%clk 0:00:56]}  Qe7 {[%clk 0:02:00]} 26. Rbf1 {[%clk 0:00:40]}  Ne3 {[%clk 0:01:55]} 27. Re1 {[%clk 0:00:37]}  Nxg2 {[%clk 0:01:54]} 28. Kxg2 {[%clk 0:00:37]}  Qe4+ {[%clk 0:01:52]} 29. Kg1 {[%clk 0:00:36]}  Qd3 {[%clk 0:01:32]} 30. Qf4 {[%clk 0:00:29]}  Re8 {[%clk 0:01:23]} 31. Rf3 {[%clk 0:00:24]}  Qd2 {[%clk 0:01:14]} 32. Qxd2 {[%clk 0:00:22]}  Rxd2 {[%clk 0:01:15]} 33. Kf1 {[%clk 0:00:19]}  Ne6 {[%clk 0:01:09]} 34. Nxe6 {[%clk 0:00:18]}  Bxe6 {[%clk 0:01:08]} 35. Nf4 {[%clk 0:00:18]}  Bc4+ {[%clk 0:01:08]} 36. Nd3 {[%clk 0:00:14]}  Bxd3+ {[%clk 0:01:07]} 37. Rxd3 {[%clk 0:00:14]}  Rxe1+ {[%clk 0:01:07]} 38. Kxe1 {[%clk 0:00:14]}  Rxd3 {[%clk 0:01:07]} 0-1


[Site "https://www.chess.com"]

[Event "Titled Tuesday Blitz July 18 Late 2023"]
[White "Bogaudinov, Rushan"]
[Black "Santos Flores, Alberto"]
[WhiteFideId "4129288"]
[BlackFideId "3601234"]
[WhiteElo "2360"]
[BlackElo "2520"]
[Result "0-1"]
[Round "4"]
[TimeControl "180+2"]
[Date "2023.07.18"]
[WhiteClock "0:00:00"]
[BlackClock "0:00:46"]
[Board "120"]

1. d4 {[%clk 0:02:31]}  d5 {[%clk 0:02:59]} 2. Nf3 {[%clk 0:02:31]}  Nf6 {[%clk 0:02:59]} 3. g3 {[%clk 0:02:31]}  e6 {[%clk 0:02:58]} 4. Bg2 {[%clk 0:02:32]}  Be7 {[%clk 0:02:58]} 5. O-O {[%clk 0:02:33]}  O-O {[%clk 0:02:59]} 6. b3 {[%clk 0:02:33]}  b6 {[%clk 0:02:57]} 7. Bb2 {[%clk 0:02:33]}  Bb7 {[%clk 0:02:58]} 8. Nbd2 {[%clk 0:02:33]}  Nbd7 {[%clk 0:02:58]} 9. Re1 {[%clk 0:02:31]}  c5 {[%clk 0:02:58]} 10. e3 {[%clk 0:02:31]}  Rc8 {[%clk 0:02:57]} 11. c4 {[%clk 0:02:31]}  Qc7 {[%clk 0:02:56]} 12. Rc1 {[%clk 0:02:30]}  Qb8 {[%clk 0:02:57]} 13. cxd5 {[%clk 0:02:27]}  Bxd5 {[%clk 0:02:51]} 14. e4 {[%clk 0:02:22]}  Bb7 {[%clk 0:02:50]} 15. e5 {[%clk 0:02:22]}  Nd5 {[%clk 0:02:50]} 16. Nc4 {[%clk 0:02:12]}  Qa8 {[%clk 0:02:44]} 17. Nd6 {[%clk 0:01:55]}  Bxd6 {[%clk 0:02:30]} 18. exd6 {[%clk 0:01:56]}  N5f6 {[%clk 0:02:23]} 19. Nh4 {[%clk 0:01:47]}  Bxg2 {[%clk 0:02:23]} 20. Nxg2 {[%clk 0:01:48]}  Rfd8 {[%clk 0:02:21]} 21. dxc5 {[%clk 0:01:45]}  Rxc5 {[%clk 0:02:17]} 22. Rxc5 {[%clk 0:01:43]}  Nxc5 {[%clk 0:02:17]} 23. Bxf6 {[%clk 0:01:42]}  gxf6 {[%clk 0:02:18]} 24. Qg4+ {[%clk 0:01:29]}  Kh8 {[%clk 0:02:18]} 25. Qf4 {[%clk 0:01:22]}  Kg7 {[%clk 0:02:15]} 26. Ne3 {[%clk 0:01:04]}  Qe4 {[%clk 0:02:05]} 27. Qxe4 {[%clk 0:00:59]}  Nxe4 {[%clk 0:02:05]} 28. Rc1 {[%clk 0:00:54]}  Rxd6 {[%clk 0:02:02]} 29. Rc7 {[%clk 0:00:53]}  Rd2 {[%clk 0:01:50]} 30. Rxa7 {[%clk 0:00:47]}  Nxf2 {[%clk 0:01:50]} 31. a4 {[%clk 0:00:41]}  Nh3+ {[%clk 0:01:47]} 32. Kf1 {[%clk 0:00:41]}  Rb2 {[%clk 0:01:43]} 33. Nc4 {[%clk 0:00:37]}  Rxb3 {[%clk 0:01:41]} 34. Nd6 {[%clk 0:00:37]}  Kg6 {[%clk 0:01:33]} 35. Nxf7 {[%clk 0:00:33]}  Rb2 {[%clk 0:01:26]} 36. Nh8+ {[%clk 0:00:32]}  Kf5 {[%clk 0:01:26]} 37. Rxh7 {[%clk 0:00:30]}  Ng5 {[%clk 0:01:26]} 38. Rb7 {[%clk 0:00:28]}  Ke4 {[%clk 0:01:23]} 39. a5 {[%clk 0:00:24]}  b5 {[%clk 0:01:22]} 40. Ke1 {[%clk 0:00:20]}  e5 {[%clk 0:01:16]} 41. Kd1 {[%clk 0:00:19]}  Rxh2 {[%clk 0:01:14]} 42. Ng6 {[%clk 0:00:20]}  Ra2 {[%clk 0:01:12]} 43. Rxb5 {[%clk 0:00:19]}  Nf3 {[%clk 0:01:11]} 44. Kc1 {[%clk 0:00:18]}  Nd4 {[%clk 0:01:10]} 45. Rb6 {[%clk 0:00:15]}  f5 {[%clk 0:01:10]} 46. a6 {[%clk 0:00:15]}  Nf3 {[%clk 0:01:00]} 47. Kb1 {[%clk 0:00:13]}  Ra5 {[%clk 0:01:00]} 48. Kb2 {[%clk 0:00:13]}  Ke3 {[%clk 0:00:58]} 49. Kb3 {[%clk 0:00:11]}  e4 {[%clk 0:00:56]} 50. Kb4 {[%clk 0:00:11]}  Ra1 {[%clk 0:00:56]} 51. Rf6 {[%clk 0:00:10]}  Nd4 {[%clk 0:00:56]} 52. Nh4 {[%clk 0:00:08]}  Kd2 {[%clk 0:00:50]} 53. Nxf5 {[%clk 0:00:07]}  Nxf5 {[%clk 0:00:50]} 54. Rxf5 {[%clk 0:00:07]}  Rxa6 {[%clk 0:00:51]} 55. g4 {[%clk 0:00:05]}  e3 {[%clk 0:00:50]} 56. Rd5+ {[%clk 0:00:05]}  Ke1 {[%clk 0:00:49]} 57. Kc3 {[%clk 0:00:05]}  e2 {[%clk 0:00:49]} 58. Re5 {[%clk 0:00:05]}  Rd6 {[%clk 0:00:46]} 59. g5 {[%clk 0:00:00]}  Kd1 {[%clk 0:00:46]} 0-1


[Site "https://www.chess.com"]